bitfinex-derivatives/quotes_SOLF0:USTF0_20220108
["timestamp","ask_amount","ask_price","bid_price","bid_amount"]
[1641609965246,4.0,138.59,138.55,22.45630741]
[1641609965446,4.0,138.59,138.55,15.24754155]
[1641609965647,4.0,138.59,138.58,1.69384075]
[1641609966047,27.66479,138.64,138.58,1.69384075]
[1641609966249,4.0,138.59,138.58,1.69384075]
[1641609966448,4.0,138.59,138.56,1.69384075]
[1641609967051,4.0,138.63,138.56,1.69384075]
[1641609967749,4.0,138.59,138.56,1.69384075]
[1641609969550,27.66479,138.64,138.56,1.69384075]
[1641609969752,27.66479,138.64,138.58,7.20720721]
[1641609969950,4.0,138.6,138.58,7.20720721]
[1641609970552,31.66479,138.64,138.59,1.69384075]
[1641609970753,4.0,138.6,138.59,1.69384075]
[1641609972957,4.0,138.6,138.58,7.20720721]
[1641609973656,31.66479,138.64,138.58,7.20720721]
[1641609974156,4.0,138.59,138.58,7.20720721]
[1641609975062,8.0,138.59,138.55,15.24754155]
[1641609975258,31.66479,138.56,138.55,15.24754155]
[1641609975458,37.54879,138.56,138.52,39.97546669]
[1641609975658,4.0,138.54,138.52,39.97546669]
[1641609975863,4.0,138.55,138.52,39.97546669]
[1641609976460,27.66479,138.58,138.51,7.21084511]
[1641609977761,4.0,138.56,138.51,7.21084511]
[1641609978260,4.0,138.56,138.51,15.12856857]
[1641609978462,27.66479,138.58,138.51,15.12856857]
[1641609978663,27.66479,138.58,138.51,21.76856857]
[1641609979061,4.0,138.57,138.51,21.76856857]
[1641609979263,4.0,138.57,138.55,5.10140118]
[1641609980666,4.0,138.59,138.55,5.10140118]
[1641609981069,5.10140118,138.6,138.55,12.31042688]
[1641609981366,5.10140118,138.6,138.57,7.20798645]
[1641609981566,5.10099662,138.62,138.57,12.30938763]
[1641609982568,5.10099662,138.64,138.59,12.30834868]
[1641609983265,5.10099662,138.64,138.61,27.66479]
[1641609983568,9.10099662,138.66,138.61,32.76619118]
[1641609983968,4.0,138.65,138.61,32.76619118]
[1641609984368,5.10099662,138.66,138.61,39.97210003]
[1641609985570,4.0,138.67,138.62,5.10140118]
[1641609986071,5.10099662,138.68,138.62,5.10140118]
[1641609986870,5.10099662,138.69,138.63,5.10140118]
[1641609987272,5.10099662,138.69,138.65,27.66479]
[1641609987472,5.10099662,138.69,138.65,35.13279]
[1641609988574,5.10099662,138.71,138.65,40.23419118]
[1641609989173,9.10099662,138.71,138.65,40.23419118]
[1641609989574,5.10099662,138.72,138.65,40.23419118]
[1641609989774,4.0,138.71,138.65,40.23419118]
[1641609989975,5.10099662,138.72,138.65,40.23419118]
[1641609990375,5.10099662,138.72,138.65,35.13279]
[1641609990775,4.0,138.71,138.65,35.13279]
[1641609990974,4.0,138.71,138.65,27.66479]
[1641609991180,5.10099662,138.71,138.65,27.66479]
[1641609991580,4.0,138.66,138.65,27.66479]
[1641609991781,5.10099662,138.71,138.65,27.66479]
[1641609991982,5.10099662,138.7,138.65,27.66479]
[1641609992481,4.0,138.68,138.65,27.66479]
[1641609992979,4.0,138.68,138.63,7.20461095]
[1641609992980,5.10099662,138.7,138.61,32.76619118]
[1641609993180,4.0,138.64,138.61,5.10140118]
[1641609993380,4.0,138.63,138.61,5.10140118]
[1641609993581,4.0,138.63,138.6,5.10140118]
[1641609994383,4.0,138.64,138.6,5.10140118]
[1641609994582,4.0,138.64,138.59,27.66479]
[1641609994784,4.0,138.63,138.59,27.66479]
[1641609995184,4.0,138.64,138.59,27.66479]
[1641609996989,4.0,138.64,138.61,7.20590885]
[1641609998189,32.76578662,138.66,138.61,7.20590885]
[1641609998791,27.66479,138.66,138.61,7.20590885]
[1641609998989,4.0,138.65,138.61,7.20590885]
[1641610000291,5.10099662,138.66,138.61,7.20590885]
[1641610000690,9.10099662,138.66,138.61,7.20590885]
[1641610001091,4.0,138.66,138.61,7.20590885]
[1641610001292,4.0,138.67,138.61,34.87069885]
[1641610001491,4.0,138.67,138.61,54.87069885]
[1641610001696,9.10099662,138.68,138.61,54.87069885]
[1641610001897,4.0,138.66,138.61,34.87069885]
[1641610002096,5.10099662,138.68,138.61,34.87069885]
[1641610002897,4.0,138.67,138.61,39.97210003]
[1641610004698,4.0,138.67,138.61,12.30731003]
[1641610006002,5.10099662,138.69,138.61,12.30731003]
[1641610006202,4.0,138.66,138.61,12.30731003]
[1641610006803,5.10099662,138.69,138.61,12.30731003]
[1641610007006,4.0,138.67,138.61,12.30731003]
[1641610007206,4.0,138.67,138.63,7.20487049]
[1641610007405,5.10099662,138.69,138.64,27.66479]
[1641610007605,4.0,138.67,138.64,27.66479]
[1641610007805,4.0,138.67,138.63,7.20487049]
[1641610008205,4.0,138.66,138.63,7.20487049]
[1641610008907,5.10099662,138.69,138.63,7.20487049]
[1641610009206,4.0,138.66,138.63,7.20487049]
[1641610009406,4.0,138.67,138.63,7.20487049]
[1641610010107,4.0,138.66,138.63,7.20487049]
[1641610010608,5.10099662,138.68,138.63,7.20487049]
[1641610010808,9.10099662,138.68,138.63,7.20487049]
[1641610011408,5.10099662,138.67,138.65,27.66479]
[1641610011608,5.10099662,138.67,138.65,33.84079]
[1641610012213,9.10099662,138.68,138.65,33.84079]
[1641610013211,9.10099662,138.68,138.65,41.04462244]
[1641610013815,4.0,138.67,138.65,46.14602362]
[1641610014012,4.0,138.66,138.65,46.14602362]
[1641610014613,5.10099662,138.69,138.65,46.14602362]
[1641610014814,4.0,138.68,138.65,47.84157153]
[1641610015413,4.0,138.68,138.65,46.14602362]
[1641610017814,5.10099662,138.7,138.67,7.20279468]
[1641610018415,15.25536983,138.73,138.68,7.20201656]
[1641610018613,5.09807366,138.72,138.69,7.20097933]
[1641610019214,5.09807366,138.72,138.68,4.969]
[1641610019417,5.09807366,138.72,138.7,27.66479]
[1641610019615,4.0,138.73,138.7,27.66479]
[1641610019815,18.65686938,138.76,138.7,27.66479]
[1641610020214,4.0,138.72,138.7,27.66479]
[1641610020916,4.0,138.72,138.68,4.969]
[1641610021316,4.0,138.71,138.68,4.969]
[1641610021516,4.0,138.75,138.7,27.66479]
[1641610021716,4.0,138.71,138.67,7.20253529]
[1641610021916,4.0,138.68,138.67,7.20253529]
[1641610022920,15.25536983,138.74,138.67,7.20253529]
[1641610023120,4.0,138.7,138.67,7.20253529]
[1641610023322,4.0,138.69,138.67,7.20253529]
[1641610023619,4.0,138.69,138.67,34.86732529]
[1641610023919,4.0,138.69,138.67,27.66479]
[1641610024121,4.0,138.73,138.67,27.66479]
[1641610024321,4.0,138.68,138.67,27.66479]
[1641610024820,3.40145731,138.72,138.67,27.66479]
[1641610025422,7.40145731,138.72,138.67,27.66479]
[1641610025623,4.0,138.72,138.67,27.66479]
[1641610025823,18.65682714,138.73,138.67,27.66479]
[1641610025824,3.40145731,138.73,138.68,7.20201656]
[1641610026025,4.0,138.73,138.68,14.01601656]
[1641610026224,15.25536983,138.75,138.68,14.01601656]
[1641610026622,4.0,138.73,138.68,14.01601656]
[1641610027022,4.0,138.72,138.68,14.01601656]
[1641610027222,4.0,138.72,138.68,7.20201656]
[1641610027422,19.25536983,138.78,138.71,27.66479]
[1641610027922,4.0,138.73,138.71,27.66479]
[1641610028923,15.25536983,138.78,138.71,27.66479]
[1641610029424,4.0,138.74,138.71,27.66479]
[1641610029924,19.25536983,138.78,138.71,27.66479]
[1641610030326,19.25536983,138.78,138.71,34.86551007]
[1641610030726,4.0,138.73,138.71,7.20072007]
[1641610031327,4.0,138.72,138.71,7.20072007]
[1641610031528,4.0,138.72,138.67,27.66479]
[1641610031727,4.0,138.73,138.68,7.20227592]
[1641610031929,4.0,138.69,138.68,7.20227592]
[1641610032128,4.0,138.7,138.68,7.20227592]
[1641610032329,27.66479,138.74,138.68,7.20227592]
[1641610032529,4.0,138.71,138.68,7.20227592]
[1641610033030,4.0,138.72,138.7,7.20123861]
[1641610035633,4.0,138.72,138.7,34.86602861]
[1641610037136,73.54056983,138.79,138.7,27.66479]
[1641610037336,4.0,138.77,138.71,7.20020161]
[1641610037735,4.0,138.77,138.74,27.66479]
[1641610037938,4.0,138.77,138.74,34.66579]
[1641610039538,4.0,138.77,138.74,27.66479]
[1641610039939,19.25536983,138.81,138.74,27.66479]
[1641610041139,4.0,138.77,138.74,27.66479]
[1641610041741,4.0,138.77,138.74,19.48061185]
[1641610042541,4.0,138.78,138.74,26.67951762]
[1641610042742,4.0,138.78,138.74,33.88651762]
[1641610043043,4.0,138.75,138.74,33.88651762]
[1641610043242,4.0,138.79,138.74,33.88651762]
[1641610043243,4.0,138.78,138.74,33.88651762]
[1641610047947,4.0,138.78,138.74,61.55130762]
[1641610048347,4.0,138.82,138.74,61.55130762]
[1641610048548,4.0,138.78,138.74,61.55130762]
[1641610048750,4.0,138.77,138.74,33.88651762]
[1641610051456,15.25536983,138.82,138.74,33.88651762]
[1641610051654,4.0,138.78,138.74,33.88651762]
[1641610052455,19.25536983,138.82,138.74,33.88651762]
[1641610052655,4.0,138.77,138.74,33.88651762]
[1641610052954,4.0,138.78,138.74,33.88651762]
[1641610053457,69.26336983,138.83,138.74,33.88651762]
[1641610053660,19.25536983,138.82,138.74,33.88651762]
[1641610053859,4.0,138.76,138.74,33.88651762]
[1641610054258,4.0,138.76,138.74,26.67951762]
[1641610054759,4.0,138.77,138.74,26.67951762]
[1641610056460,15.25536983,138.82,138.74,26.67951762]
[1641610056663,4.0,138.79,138.74,19.48061185]
[1641610056877,4.0,138.8,138.74,19.48061185]
[1641610057560,15.25536983,138.82,138.75,20.0]
[1641610057760,4.0,138.81,138.78,7.19683339]
[1641610057962,15.25536983,138.84,138.8,27.66479]
[1641610058163,4.0,138.81,138.8,27.66479]
[1641610059466,15.25536983,138.85,138.8,27.66479]
[1641610059765,4.0,138.82,138.8,27.66479]
[1641610060366,15.25536983,138.85,138.8,27.66479]
[1641610060767,4.0,138.84,138.8,27.66479]
[1641610061569,15.25536983,138.86,138.8,27.66479]
[1641610061769,4.0,138.85,138.81,7.19553877]
[1641610061967,4.0,138.83,138.8,34.86084656]
[1641610062369,4.0,138.85,138.8,34.86084656]
[1641610062567,15.25536983,138.87,138.8,34.86084656]
[1641610062768,4.0,138.83,138.8,34.86084656]
[1641610063469,4.0,138.81,138.8,34.86084656]
[1641610063669,4.0,138.81,138.78,7.19709237]
[1641610063868,4.0,138.79,138.78,7.19709237]
[1641610068772,4.0,138.79,138.74,27.66479]
[1641610068973,4.0,138.75,138.74,34.86369577]
[1641610069173,4.0,138.75,138.73,15.25536983]
[1641610069572,4.0,138.79,138.73,15.25536983]
[1641610069872,4.0,138.79,138.73,7.19968321]
[1641610070073,4.0,138.79,138.73,34.86447321]
[1641610070371,4.0,138.75,138.73,34.86447321]
[1641610070772,4.0,138.79,138.74,1.69709537]
[1641610070972,4.0,138.75,138.74,8.89600114]
[1641610071174,8.0,138.75,138.71,22.45583066]
[1641610071372,4.0,138.72,138.71,15.25536983]
[1641610071873,4.0,138.72,138.69,15.25536983]
[1641610072575,4.0,138.7,138.69,15.25536983]
[1641610073172,4.0,138.7,138.68,29.79138639]
[1641610073475,4.0,138.72,138.68,29.79138639]
[1641610073673,4.0,138.69,138.68,29.79138639]
[1641610074176,4.0,138.69,138.68,14.53601656]
[1641610074376,31.66479,138.75,138.68,14.53601656]
[1641610076080,4.0,138.69,138.68,14.53601656]
[1641610079482,4.0,138.69,138.68,19.62261927]
[1641610081384,4.0,138.69,138.68,12.28861927]
[1641610081783,4.0,138.69,138.68,7.20201656]
[1641610087890,4.0,138.74,138.68,7.20201656]
[1641610088190,4.0,138.69,138.68,7.20201656]
[1641610092193,31.66479,138.75,138.68,7.20201656]
[1641610092796,4.0,138.7,138.68,7.20201656]
[1641610093094,4.0,138.7,138.68,12.28861927]
[1641610095398,4.0,138.73,138.68,12.28861927]
[1641610095595,4.0,138.69,138.68,12.28861927]
[1641610095797,9.08660271,138.75,138.68,12.28861927]
[1641610095995,4.0,138.69,138.68,12.28861927]
[1641610098600,4.0,138.72,138.68,12.28861927]
[1641610098798,4.0,138.72,138.68,18.88661927]
[1641610099097,5.08660271,138.73,138.68,18.88661927]
[1641610099098,9.08660271,138.73,138.68,18.88661927]
[1641610099298,4.0,138.69,138.68,18.88661927]
[1641610099499,4.0,138.69,138.68,13.80001656]
[1641610101000,27.66479,138.75,138.68,13.80001656]
[1641610101600,32.75139271,138.75,138.73,5.1074049]
[1641610102000,4.0,138.74,138.73,5.1074049]
[1641610102401,4.0,138.74,138.68,13.80001656]
[1641610102802,27.66479,138.75,138.68,13.80001656]
[1641610103604,4.0,138.72,138.68,13.80001656]
[1641610103803,30.33834404,138.75,138.68,13.80001656]
[1641610104003,4.0,138.74,138.68,13.80001656]
[1641610104602,8.0,138.69,138.68,13.80001656]
[1641610105004,8.0,138.69,138.68,6.598]
[1641610105603,8.0,138.69,138.66,21.82007133]
[1641610105804,8.0,138.67,138.66,21.82007133]
[1641610106204,4.0,138.67,138.63,7.20487049]
[1641610106404,4.0,138.68,138.63,7.20487049]
[1641610106807,4.0,138.64,138.63,7.20487049]
[1641610108306,4.0,138.65,138.63,7.20487049]
[1641610110810,4.0,138.66,138.63,7.20487049]
[1641610111612,4.0,138.66,138.64,1.69491097]
[1641610111812,56.214,138.7,138.64,1.69491097]
[1641610112012,4.0,138.65,138.64,1.69491097]
[1641610113113,4.0,138.66,138.64,1.69491097]
[1641610113314,31.66479,138.7,138.64,1.69491097]
[1641610113914,4.0,138.7,138.64,1.69491097]
[1641610114716,31.66479,138.7,138.64,1.69491097]
[1641610115416,4.0,138.65,138.64,1.69491097]
[1641610120314,4.0,138.67,138.64,1.69491097]
[1641610120517,57.28970671,138.71,138.66,7.20331352]
[1641610120716,4.0,138.68,138.66,13.25931352]
[1641610121116,5.10470671,138.72,138.66,13.25931352]
[1641610121320,4.0,138.73,138.67,1.69491097]
[1641610121520,4.0,138.72,138.67,1.69491097]
[1641610121721,90.05159671,138.74,138.67,1.69491097]
[1641610121921,86.05159671,138.74,138.69,7.20175723]
[1641610122121,32.76949671,138.74,138.67,16.59244626]
[1641610122321,32.76949671,138.74,138.7,5.09869304]
[1641610123121,27.66479,138.74,138.71,5.09869304]
[1641610129931,59.62000671,138.76,138.71,5.09869304]
[1641610130131,5.10470671,138.76,138.71,5.09869304]
[1641610130730,5.10470671,138.77,138.72,5.09869304]
[1641610131332,5.10470671,138.77,138.72,12.29889465]
[1641610131635,5.10470671,138.77,138.72,39.96368465]
[1641610132034,15.25536983,138.8,138.75,7.19864665]
[1641610132237,15.25536983,138.8,138.75,12.78764665]
[1641610132437,12.51028221,138.8,138.75,16.78764665]
[1641610132736,12.51028221,138.84,138.75,12.78764665]
[1641610133635,4.0,138.85,138.78,27.66479]
[1641610136643,56.8665,138.86,138.78,27.66479]
[1641610136846,60.8665,138.86,138.78,27.66479]
[1641610137043,56.8665,138.86,138.78,27.66479]
[1641610137846,56.8665,138.86,138.78,31.66479]
[1641610138047,4.0,138.84,138.78,27.66479]
[1641610138550,60.8665,138.86,138.78,27.66479]
[1641610139748,60.8665,138.86,138.77,27.66479]
[1641610139749,60.8665,138.86,138.76,4.937]
[1641610140450,88.53129,138.86,138.78,27.66479]
[1641610141350,4.0,138.85,138.78,27.66479]
[1641610143553,4.0,138.85,138.75,11.19864665]
[1641610143755,60.8665,138.86,138.75,7.19864665]
[1641610143953,4.0,138.85,138.75,7.19864665]
[1641610144153,4.0,138.81,138.75,7.19864665]
[1641610144353,4.0,138.83,138.75,34.86343665]
[1641610145054,4.0,138.82,138.75,34.86343665]
[1641610145453,27.66479,138.84,138.75,38.86343665]
[1641610145854,27.66479,138.84,138.75,34.86343665]
[1641610146053,31.66479,138.84,138.75,34.86343665]
[1641610146253,31.66479,138.84,138.78,27.66479]
[1641610147555,27.66479,138.84,138.78,27.66479]
[1641610152160,27.66479,138.84,138.75,34.86343665]
[1641610152161,60.8665,138.86,138.75,7.19864665]
[1641610153361,27.66479,138.85,138.78,27.66479]
[1641610155463,31.66479,138.85,138.78,27.66479]
[1641610155866,4.0,138.84,138.78,27.66479]
[1641610156064,4.0,138.84,138.76,27.66479]
[1641610156265,4.0,138.82,138.76,27.66479]
[1641610156467,4.0,138.82,138.75,7.19864665]
[1641610156468,10.303,138.82,138.75,7.19864665]
[1641610156666,6.303,138.82,138.75,7.19864665]
[1641610157366,6.303,138.82,138.77,34.86240039]
[1641610157566,27.66479,138.85,138.77,34.86240039]
[1641610157969,31.66479,138.85,138.77,34.86240039]
[1641610158166,4.0,138.84,138.77,34.86240039]
[1641610158367,27.66479,138.85,138.77,34.86240039]
[1641610159167,27.66479,138.85,138.79,7.19631549]
[1641610159366,27.66479,138.85,138.79,13.04731549]
[1641610160372,56.8665,138.86,138.79,13.04731549]
[1641610161371,56.8665,138.86,138.79,20.96834011]
[1641610163072,56.8665,138.86,138.79,36.2810671]
[1641610164071,48.68732705,138.86,138.79,36.2810671]
[1641610165574,48.68732705,138.86,138.8,27.66479]
[1641610166274,27.66479,138.87,138.8,27.66479]
[1641610167979,19.31272699,138.88,138.8,27.66479]
[1641610168580,15.31272699,138.87,138.8,27.66479]
[1641610169580,19.31272699,138.87,138.8,27.66479]
[1641610169781,15.31272699,138.87,138.8,27.66479]
[1641610169982,4.0,138.86,138.8,27.66479]
[1641610170780,4.0,138.84,138.8,27.66479]
[1641610170980,4.0,138.84,138.79,7.19631549]
[1641610171184,4.0,138.83,138.78,15.31272699]
[1641610171582,4.0,138.83,138.77,15.31272699]
[1641610171785,31.66479,138.84,138.77,15.31272699]
[1641610171984,27.66479,138.84,138.77,15.31272699]
[1641610172385,3.40484474,138.83,138.76,24.93941545]
[1641610175189,7.40484474,138.83,138.76,24.93941545]
[1641610175390,3.40484474,138.83,138.76,24.93941545]
[1641610175692,4.0,138.83,138.77,15.31272699]
[1641610176392,3.40537849,138.82,138.76,1.69772122]
[1641610177291,3.40537849,138.83,138.76,1.69772122]
[1641610178793,35.07016849,138.83,138.76,1.69772122]
[1641610179494,3.40537849,138.82,138.76,1.69772122]
[1641610181494,31.07016849,138.82,138.76,1.69772122]
[1641610181899,27.66479,138.82,138.76,1.69772122]
[1641610184702,19.31272699,138.85,138.76,1.69772122]
[1641610184999,15.31272699,138.84,138.76,1.69772122]
[1641610185200,19.31272699,138.84,138.76,1.69772122]
[1641610185599,3.40276417,138.83,138.76,1.69772122]
[1641610186401,27.66479,138.82,138.76,1.69772122]
[1641610187808,19.31272699,138.84,138.76,1.69772122]
[1641610188606,3.40244822,138.83,138.76,1.69772122]
[1641610190108,27.66479,138.82,138.76,1.69772122]
[1641610192212,32.76299736,138.82,138.78,5.09820736]
[1641610193014,5.09820736,138.82,138.78,5.09820736]
[1641610193614,5.09820736,138.82,138.79,5.09820736]
[1641610195017,9.09820736,138.82,138.79,5.09820736]
[1641610195218,4.0,138.81,138.79,5.09820736]
[1641610195416,4.0,138.8,138.77,1.69772122]
[1641610195616,4.0,138.78,138.73,40.7705241]
[1641610195815,4.0,138.76,138.73,40.7705241]
[1641610196015,4.0,138.78,138.73,40.7705241]
[1641610196218,4.0,138.79,138.69,107.73852201]
[1641610196415,4.0,138.79,138.71,34.86525083]
[1641610196416,31.66479,138.79,138.71,34.86525083]
[1641610196615,4.0,138.78,138.71,34.86525083]
[1641610196819,4.0,138.78,138.71,27.66479]
[1641610197219,4.0,138.77,138.71,27.66479]
[1641610198221,4.0,138.77,138.69,90.63278791]
[1641610198522,27.66479,138.76,138.69,90.63278791]
[1641610201230,27.66479,138.76,138.69,62.96799791]
[1641610202332,55.32958,138.76,138.69,62.96799791]
[1641610203837,59.32958,138.76,138.69,62.96799791]
[1641610204034,4.0,138.75,138.69,62.96799791]
[1641610204233,4.0,138.75,138.69,55.7665]
[1641610204438,27.66479,138.73,138.69,55.7665]
[1641610204634,27.66479,138.73,138.67,40.7705241]
[1641610205235,27.66479,138.73,138.66,147.05523771]
[1641610205435,27.66479,138.73,138.67,4.0921351]
[1641610208339,27.66479,138.73,138.66,93.56194409]
[1641610209243,27.66479,138.76,138.7,4.0]
[1641610209442,4.0,138.8,138.73,7.19942405]
[1641610209841,4.0,138.8,138.71,65.47732007]
[1641610210044,4.0,138.77,138.71,65.47732007]
[1641610210441,31.66479,138.77,138.71,65.47732007]
[1641610210643,27.66479,138.77,138.71,65.47732007]
[1641610211042,27.66479,138.77,138.72,7.1999424]
[1641610213346,27.66479,138.79,138.72,7.1999424]
[1641610213547,4.0,138.84,138.72,7.1999424]
[1641610213749,58.4361,138.85,138.74,20.0]
[1641610213949,54.4361,138.85,138.75,4.0]
[1641610214449,54.4361,138.85,138.79,27.66479]
[1641610216049,27.66479,138.88,138.79,27.66479]
[1641610216252,56.6421,138.89,138.79,34.86110549]
[1641610217153,60.6421,138.89,138.79,34.86110549]
[1641610217354,56.6421,138.89,138.79,34.86110549]
[1641610218456,56.6421,138.89,138.79,38.86110549]
[1641610218655,56.6421,138.89,138.82,27.66479]
[1641610219555,60.6421,138.89,138.82,27.66479]
[1641610220155,4.0,138.87,138.82,27.66479]
[1641610220356,4.0,138.86,138.82,27.66479]
[1641610220962,56.6421,138.89,138.82,27.66479]
[1641610222357,60.6421,138.89,138.82,27.66479]
[1641610222557,56.6421,138.89,138.82,27.66479]
[1641610223057,60.6421,138.89,138.82,27.66479]
[1641610223257,56.6421,138.89,138.82,27.66479]
[1641610224259,56.6421,138.89,138.82,19.48644289]
[1641610224759,4.0,138.88,138.82,19.48644289]
[1641610224958,56.6421,138.89,138.82,19.48644289]
[1641610226860,56.6421,138.89,138.82,47.15123289]
[1641610233670,56.6421,138.89,138.81,7.1952799]
[1641610235170,56.6421,138.89,138.84,27.66479]
[1641610235374,4.0,138.91,138.84,27.66479]
[1641610236175,3.38636044,138.9,138.84,27.66479]
[1641610236573,3.38636044,138.9,138.83,62.5346]
[1641610237072,4.0,138.88,138.81,7.1952799]
[1641610237273,31.66479,138.88,138.81,7.1952799]
[1641610237673,4.0,138.86,138.81,7.1952799]
[1641610237873,31.66479,138.88,138.81,7.1952799]
[1641610238073,27.66479,138.88,138.81,7.1952799]
[1641610238276,31.66479,138.88,138.81,7.1952799]
[1641610239078,4.0,138.87,138.81,7.1952799]
[1641610239776,27.66479,138.88,138.81,7.1952799]
[1641610239777,31.66479,138.88,138.81,7.1952799]
[1641610240477,27.66479,138.88,138.81,7.1952799]
[1641610240976,46.88139538,138.9,138.81,7.1952799]
[1641610241178,4.0,138.89,138.79,27.66479]
[1641610241876,74.54618538,138.9,138.79,27.66479]
[1641610242077,3.4007938,138.88,138.8,1.69461498]
[1641610243681,22.61739918,138.89,138.8,1.69461498]
[1641610243878,73.06910538,138.88,138.8,1.69461498]
[1641610244478,3.4007938,138.87,138.79,24.83638384]
[1641610245281,3.4007938,138.87,138.8,27.66479]
[1641610246081,3.4007938,138.87,138.81,1.69461498]
[1641610246783,7.4007938,138.87,138.81,1.69461498]
[1641610246983,3.4007938,138.87,138.79,24.83638384]
[1641610247383,3.4007938,138.87,138.8,27.66479]
[1641610247784,18.61739918,138.87,138.8,27.66479]
[1641610248786,3.4007938,138.87,138.81,8.89015375]
[1641610249886,3.4007938,138.87,138.82,1.69461498]
[1641610250489,73.06910538,138.88,138.82,1.69461498]
[1641610250687,57.8525,138.88,138.82,1.69461498]
[1641610251290,57.8525,138.88,138.85,27.66479]
[1641610251489,15.21660538,138.9,138.85,27.66479]
[1641610253293,15.21660538,138.89,138.81,22.41214415]
[1641610253494,19.21660538,138.89,138.81,22.41214415]
[1641610254095,3.40486712,138.88,138.82,1.69721929]
[1641610254994,63.8398,138.88,138.82,1.69721929]
[1641610255795,5.10272569,138.85,138.83,5.10272569]
[1641610256696,5.10272569,138.86,138.84,5.10272569]
[1641610257396,5.10272569,138.86,138.85,27.66479]
[1641610257596,27.66479,138.9,138.85,27.66479]
[1641610257597,5.10272569,138.87,138.85,27.66479]
[1641610259799,5.10272569,138.87,138.84,5.10272569]
[1641610261500,5.10272569,138.86,138.84,5.10272569]
[1641610262304,15.21660538,138.9,138.84,5.10272569]
[1641610262501,5.10170582,138.87,138.84,6.79983272]
[1641610263602,5.10170582,138.87,138.86,27.66479]
[1641610263803,18.62129356,138.9,138.86,27.66479]
[1641610264005,3.40468818,138.91,138.86,27.66479]
[1641610265302,3.40468818,138.91,138.87,1.69710703]
[1641610266912,61.2707,138.92,138.87,1.69710703]
[1641610270011,15.21660538,138.95,138.89,7.19114051]
[1641610270210,74.99220538,138.95,138.89,7.19114051]
[1641610271012,59.7756,138.95,138.9,1.69710703]
[1641610271813,46.88139538,138.98,138.92,27.66479]
[1641610272513,46.88139538,138.98,138.88,1.69710703]
[1641610273213,19.21660538,138.98,138.88,1.69710703]
[1641610273413,4.0,138.97,138.88,1.69710703]
[1641610273614,7.38965673,138.97,138.88,1.69710703]
[1641610273914,7.38965673,138.97,138.9,27.66479]
[1641610274313,3.38965673,138.97,138.9,27.66479]
[1641610274515,4.0,138.96,138.9,27.66479]
[1641610274715,4.0,138.97,138.9,27.66479]
[1641610275717,31.66479,138.98,138.9,27.66479]
[1641610276115,4.0,138.97,138.9,27.66479]
[1641610276317,7.38743864,138.97,138.9,27.66479]
[1641610277115,4.0,138.97,138.9,27.66479]
[1641610278017,3.38783239,138.96,138.9,27.66479]
[1641610278419,4.0,138.95,138.9,27.66479]
[1641610278619,64.78313239,138.96,138.9,27.66479]
[1641610279618,68.78313239,138.96,138.9,27.66479]
[1641610279818,64.78313239,138.96,138.9,27.66479]
[1641610280418,61.3953,138.96,138.9,27.66479]
[1641610281020,61.3953,138.96,138.89,7.19139909]
[1641610281823,61.3953,138.96,138.89,34.85618909]
[1641610285527,61.3953,138.96,138.9,1.69208803]
[1641610285726,53.22226055,138.96,138.9,1.69208803]
[1641610286829,3.39289857,138.95,138.88,7.19165768]
[1641610287632,3.39289857,138.95,138.89,1.69208803]
[1641610288030,3.39289857,138.95,138.92,27.66479]
[1641610288628,15.21660538,138.97,138.92,27.66479]
[1641610288830,19.21660538,138.99,138.92,27.66479]
[1641610289732,18.61387507,138.98,138.92,27.66479]
[1641610290333,80.71767507,138.98,138.92,27.66479]
[1641610290834,84.71767507,138.98,138.92,27.66479]
[1641610291333,3.39726969,138.97,138.92,27.66479]
[1641610292633,18.61387507,138.97,138.92,27.66479]
[1641610293435,3.39726969,138.97,138.92,27.66479]
[1641610294738,3.39726969,138.97,138.88,15.21660538]
[1641610294937,4.0,138.94,138.87,15.21660538]
[1641610295137,4.0,138.93,138.87,15.21660538]